[Event "Icelandic Chess-ch 2023"]
[Site "Hafnarfjordur"]
[Date "2023.05.23"]
[Round "9.3"]
[White "Hjartarson, Johann"]
[Black "Thorfinnsson, Bragi"]
[Result "1-0"]
[ECO "D37"]
[WhiteElo "2466"]
[BlackElo "2431"]
[Annotator "TA"]
[PlyCount "67"]
[EventDate "2023.05.13"]
[EventType "tourn"]
[EventCountry "ISL"]
[SourceTitle "playchess.com"]
[Source "ChessBase"]
[SourceQuality "1"]
[TimeControl "40/5400+30:1800+30"]

{[%evp 9,67,16,31,26,33,22,20,5,22,13,4,4,5,0,10,0,28,31,43,22,41,0,0,0,13,0,16,12,10,6,22,0,0,0,0,0,40,43,61,46,37,38,119,111,204,188,269,239,617,357,414,97,74,84,1897,1804,29976,29977,29977,29977]} 1. d4 {[%emt 0:00:15] ChessBase II} Nf6 {[%emt 0:02:08]} 2. c4 {[%emt 0:00:08]} e6 {[%emt 0:00:50]} 3. Nf3 {[%emt 0:00:15]} d5 {[%emt 0:00:42]} 4. Nc3 {[%emt 0:00:15]} h6 {[%emt 0:01:21]} 5. e3 {[%emt 0:02:23]} Bd6 {[%emt 0:01:33]} 6. Bd3 {[%emt 0:02:46] D37: Queen's Gambit Declined: 5 Bf4.} O-O {[%emt 0:02:58]} 7. O-O {[%emt 0:01:11]} (7. c5 $5 {[%cal Rc5d6]} Be7 8. b4 $14) 7... dxc4 {[%emt 0:07:39]} 8. Bxc4 {[%emt 0:00:21] With the idea e4. The position is equal.} Nc6 {[%emt 0:00:06]} 9. a3 {[%emt 0:03:37]} a6 {[%emt 0:06:29]} 10. b4 {[%emt 0:01:55] [#]} e5 $146 {[%emt 0:02:04] Strongly threatening ...e4.} ({Predecessor:} 10... b5 11. Bd3 Bb7 12. e4 Nxd4 13. Nxd4 Bxh2+ 14. Kxh2 Qxd4 15. Qc2 Rad8 16. Rd1 Qe5+ {1-0 Svenske,J (1583)-Nyaas,J NOR-ch Seniors-A 2015 (4)}) 11. h3 {[%emt 0:00:19]} Bf5 {[%emt 0:07:30]} 12. Bb2 {[%emt 0:01:09]} e4 {[%emt 0:04:09]} 13. Nd2 {[%emt 0:00:15]} Qd7 {[%emt 0:00:04]} 14. f3 {[%emt 0:00:58]} exf3 {[%emt 0:04:22]} 15. Qxf3 {[%emt 0:00:36]} Bg6 {[%emt 0:00:59]} 16. Nd5 {[%emt 0:01:49]} Nxd5 {[%emt 0:14:50]} 17. Bxd5 {[%emt 0:00:29]} Nd8 {[%emt 0:00:14]} (17... a5 $5 {[%cal Ra5b4]}) 18. e4 {[%emt 0:21:28]} c6 {[%emt 0:02:38]} 19. Ba2 {[%emt 0:06:50]} (19. Bb3 {simplifies} Ne6 20. Rad1 Bc7 21. Qe3) 19... Bc7 {[%emt 0:02:20]} (19... Ne6 {simplifies} 20. Qe3 Bc7 21. Rad1 Qe7) 20. d5 {[%emt 0:02:54]} cxd5 $1 {[%emt 0:03:37]} 21. Bxd5 {[%emt 0:00:15]} (21. Bxg7 $2 Kxg7 22. Qf6+ Kh7 23. exd5 a5 $19) 21... Kh7 {[%emt 0:00:40]} 22. Nc4 {[%emt 0:01:41]} (22. Bxg7 $2 Kxg7 23. Nc4 Nc6 $19) 22... Rc8 {[%emt 0:07:13]} 23. Rad1 {[%emt 0:01:13] Black must now prevent h4.} ({Avoid the trap} 23. Bxg7 $2 Kxg7 24. Qf6+ Kh7 $19) 23... Qe7 {[%emt 0:02:46]} 24. e5 $40 {[%emt 0:02:04][%cal Be4e5,Be5d6][%mdl 160] Black needs to defend precisely. White has more active pieces. The black rooks are badly placed.} ({Reject} 24. Qc3 f6 25. e5 Bxe5 $11) 24... Nc6 {[%emt 0:07:00]} 25. Rfe1 {[%emt 0:04:25]} Qg5 {[%emt 0:04:12]} ({Black should try} 25... Bb8 $14) 26. Nd6 {[%emt 0:02:43]} Bxd6 {[%emt 0:03:54]} (26... Bb6+ $16 27. Kh1 Rc7) 27. exd6 $18 {[%emt 0:00:10] d7 is the strong threat.} Bh5 {[%emt 0:00:06]} (27... Rcd8 $142 28. Bxc6 bxc6) 28. Qd3+ {[%emt 0:01:02]} Kg8 $2 {[%emt 0:00:30] [#]} (28... Bg6 29. Qc3 Bf5) 29. Rd2 {[%emt 0:01:59]} Rcd8 {[%emt 0:01:52]} 30. Re3 $2 {[%emt 0:09:43]} (30. Rf2 $18 {and White stays clearly on top.}) 30... Rxd6 $16 {[%emt 0:07:52]} 31. Rg3 {[%emt 0:00:41] The board is on fire.} Ne5 $2 {[%emt 0:00:09][%mdl 8192]} 32. Rxg5 $18 {[%emt 0:00:22]} Nxd3 {[%emt 0:00:03]} 33. Rxg7+ {[%emt 0:00:13]} Kh8 {[%emt 0:00:05]} 34. Rxd3 {[%emt 0:00:19] Artfully played by Hjartarson.   Weighted Error Value: White=0.35/Black=0.53} 1-0

[Event "Icelandic Chess-ch 2023"]
[Site "Hafnarfjordur"]
[Date "2023.05.23"]
[Round "9.4"]
[White "Stefansson, Vignir Vatnar"]
[Black "Ingvason, Johann"]
[Result "1-0"]
[ECO "A11"]
[WhiteElo "2470"]
[BlackElo "2076"]
[Annotator "TA"]
[PlyCount "115"]
[EventDate "2023.05.13"]
[EventType "tourn"]
[EventCountry "ISL"]
[SourceTitle "playchess.com"]
[Source "ChessBase"]
[SourceQuality "1"]
[TimeControl "40/5400+30:1800+30"]

{[%evp 10,115,28,27,33,22,28,38,35,0,0,-14,29,-5,0,0,16,7,23,27,35,24,36,0,0,0,36,40,39,33,31,39,56,6,55,-5,-8,-14,-7,-38,0,0,0,-39,-41,-39,-44,-42,-28,-40,26,0,0,-37,25,-14,0,0,0,-7,0,-9,0,0,0,-14,-17,-19,-24,-114,0,0,0,0,0,-15,-10,-21,-26,-219,4,0,42,42,63,64,64,64,79,69,69,69,68,66,66,66,71,71,77,77,5089,376,347,343,1558,1479,1146,1060]} 1. c4 {[%emt 0:00:01]} Nf6 {[%emt 0:05:45]} 2. Nf3 {[%emt 0:00:56]} c6 {[%emt 0:01:52]} 3. g3 {[%emt 0:00:09]} d5 {[%emt 0:00:06]} 4. Bg2 {[%emt 0:00:06]} Bf5 {[%emt 0:00:51]} 5. Qb3 {[%emt 0:00:08]} Qb6 {[%emt 0:02:20]} 6. d3 {[%emt 0:00:18]} e6 {[%emt 0:01:20] A11: English Opening: 1...c6.} 7. Be3 {[%emt 0:00:07]} Qxb3 {[%emt 0:01:48]} 8. axb3 {[%emt 0:00:13]} Nbd7 {[%emt 0:02:44] White is slightly better.} 9. O-O {[%emt 0:14:15]} (9. Bxa7 $2 Bc5 10. O-O Rxa7 $19) 9... a6 {[%emt 0:02:34]} 10. Nh4 {[%emt 0:07:48]} Bg6 {[%emt 0:00:43]} (10... Bg4 $5 {[%cal Rg4e2]} 11. f3 Bh5 $11) 11. Nc3 {[%emt 0:00:26]} Be7 {[%emt 0:01:20]} 12. h3 {[%emt 0:00:48]} O-O {[%emt 0:01:49]} 13. f4 {[%emt 0:01:23]} Nh5 {[%emt 0:02:20]} 14. Nxg6 {[%emt 0:00:49]} hxg6 {[%emt 0:00:05]} 15. g4 {[%emt 0:01:58]} Nhf6 {[%emt 0:00:10] [#]} 16. Bf2 $146 {[%emt 0:00:40]} ({Predecessor:} 16. Rfd1 Rfd8 17. Bf2 Bd6 18. e3 Bxf4 19. d4 Bd6 20. c5 Bc7 21. b4 Ne8 22. g5 {1-0 Safyanovsky,M (2241)-Kleibel,U (2065) Bayern-ch 81st 2010 (2)}) 16... Bd6 {[%emt 0:01:45]} 17. Be3 {[%emt 0:02:53]} Rfe8 {[%emt 0:00:45]} 18. d4 {[%emt 0:01:34]} Bc7 {[%emt 0:12:32]} 19. Bd2 {[%emt 0:00:26]} Rad8 {[%emt 0:01:58]} 20. e3 {[%emt 0:02:12]} Nb6 {[%emt 0:08:22]} 21. Na4 {[%emt 0:02:02]} (21. c5 $14 Nc8 22. Bf3) 21... Nc8 {[%emt 0:07:38]} (21... Nxa4 $11 22. Rxa4 Ne4 23. Bxe4 dxe4) 22. g5 {[%emt 0:05:25]} (22. Be1 $14) 22... Nd7 $11 {[%emt 0:01:06]} 23. Rac1 {[%emt 0:03:42][%cal Ba1c1,Bc1c3,Bc3d3,Bd3d1][%mdl 32]} Ne7 {[%emt 0:02:24]} 24. Rfe1 {[%emt 0:01:25]} Bb8 {[%emt 0:00:58]} 25. Ba5 {[%emt 0:10:20]} Rc8 {[%emt 0:00:43]} 26. Rc3 {[%emt 0:00:14]} Ba7 {[%emt 0:01:25]} 27. Bb4 {[%emt 0:03:42]} Nf5 {[%emt 0:05:05]} 28. Rd3 {[%emt 0:02:48]} Bb8 {[%emt 0:02:31]} 29. Kf2 $1 {[%emt 0:00:32]} Nd6 {[%emt 0:06:08]} (29... f6 $15) 30. Rc1 {[%emt 0:01:53]} Nf5 {[%emt 0:07:16]} 31. Bf3 {[%emt 0:00:15]} Ba7 {[%emt 0:02:41]} (31... f6 $15) 32. Rdd1 {[%emt 0:04:05] [#]} e5 $1 {[%emt 0:05:02]} 33. fxe5 {[%emt 0:04:07]} Nxe5 {[%emt 0:00:08]} 34. dxe5 {[%emt 0:00:08]} Bxe3+ {[%emt 0:00:07]} 35. Kf1 $1 {[%emt 0:00:03][%cal Oc4d5]} Bxc1 {[%emt 0:01:49]} (35... Bxg5 36. Bd2 Ne3+ 37. Bxe3 Bxe3 38. Rc2 $16) 36. Rxc1 {[%emt 0:00:05]} Rxe5 {[%emt 0:00:13]} 37. Nb6 {[%emt 0:05:25]} Rce8 {[%emt 0:00:16] Strongly threatening ...Re3.} 38. cxd5 {[%emt 0:00:08]} cxd5 {[%emt 0:01:41]} 39. Re1 {[%emt 0:02:10] [#]} (39. Rc7 $11 {keeps the balance.}) 39... Ne3+ {[%emt 0:05:08]} ({Black should try} 39... Ng3+ $1 $17 40. Kg2 Rxe1 41. Bxe1 Rxe1 42. Kxg3 Re3) 40. Kf2 {[%emt 0:00:23][%cal Ob6d5]} d4 {[%emt 0:00:06] And now ...Rb5 would win.} 41. Nc4 {[%emt 0:30:52]} Rxg5 {[%emt 0:07:37]} 42. Bd2 {[%emt 0:00:00]} Rd8 {[%emt 0:07:24]} 43. Bxb7 {[%emt 0:00:00]} (43. Nxe3 {simplifies} dxe3+ 44. Bxe3 Rb5 45. Rd1) 43... Rb8 {[%emt 0:04:56]} (43... Rb5 {simplifies} 44. Bxa6 Nxc4 45. Bxb5 Nxd2 46. b4 Rb8) 44. Bxa6 $2 {[%emt 0:00:00] [#]} (44. Be4 $11) 44... Rg2+ $2 {[%emt 0:01:56]} (44... Rxb3 45. Nxe3 (45. Bxe3 Rf5+ 46. Kg2 dxe3 $15) 45... dxe3+ 46. Bxe3 Rxb2+ 47. Re2 Rf5+ 48. Kg2 Rxe2+ 49. Bxe2 $15) (44... Rf5+ $1 $19 45. Ke2 Rf6) 45. Kf3 {[%emt 0:00:00]} Nxc4 {[%emt 0:00:09]} 46. Bf4 {[%emt 0:00:00]} Rxb3+ {[%emt 0:03:46]} 47. Kxg2 {[%emt 0:00:00]} Rxb2+ {[%emt 0:00:39]} 48. Kf3 {[%emt 0:00:00]} Nd2+ {[%emt 0:01:32]} 49. Bxd2 {[%emt 0:00:00]} Rxd2 $16 {[%emt 0:00:06][%mdl 4096] Endgame KRB-KR} 50. Bc4 {[%emt 0:00:00]} Kf8 {[%emt 0:05:51] Prevents Re8+.} 51. Ra1 {[%emt 0:00:00] Threatens to win with Ra8+.} f5 $1 {[%emt 0:00:53]} 52. Kf4 {[%emt 0:00:00] Hoping for Ke5.} Rc2 {[%emt 0:02:26]} 53. Ra4 {[%emt 0:00:00] Black must now prevent Ke5.} Rc3 {[%emt 0:00:17]} 54. Ke5 {[%emt 0:00:00] Kd6 would kill now.} Ke7 {[%emt 0:01:11][%mdl 8192]} (54... d3 $2 55. Kd6 Rxc4 56. Rxc4 Kg8 57. Ke5 Kh7 58. Rh4+ Kg8 59. Rd4) (54... g5 $16) 55. Ra7+ $18 {[%emt 0:00:23]} (55. Kxd4 Rxh3 56. Ra6 Rh4+ 57. Kd5 g5 $11) 55... Kd8 {[%emt 0:00:20]} 56. Be6 {[%emt 0:00:36] White threatens Kd6 and mate.} ({Weaker is} 56. Kxd4 Rxh3 57. Bd5 (57. Rxg7 g5 $16) 57... Rh6 $16) 56... Rc6 {[%emt 0:03:32]} (56... Re3+ $2 57. Kd6 (57. Kxd4 Rxe6 58. Kd5 Rf6 $11) 57... Rxe6+ 58. Kxe6 Kc8 59. Rxg7 f4 60. Rd7 f3 61. Rxd4) (56... Rc7 57. Ra4 Ke7 58. Rxd4 Ra7) 57. Rd7+ {[%emt 0:00:27]} Ke8 {[%emt 0:00:25]} 58. Rxg7 {[%emt 0:00:37] Weighted Error Value: White=0.19 (very precise) /Black=0.21 (precise)} 1-0

[Event "Icelandic Chess-ch 2023"]
[Site "Hafnarfjordur"]
[Date "2023.05.23"]
[Round "9.5"]
[White "Kjartansson, Gudmundur"]
[Black "Domalchuk-Jonasson, Aleksandr"]
[Result "1/2-1/2"]
[ECO "D36"]
[WhiteElo "2402"]
[BlackElo "2338"]
[Annotator "TA"]
[PlyCount "146"]
[EventDate "2023.05.13"]
[EventType "tourn"]
[EventCountry "ISL"]
[SourceTitle "playchess.com"]
[Source "ChessBase"]
[SourceQuality "1"]
[TimeControl "40/5400+30:1800+30"]

{[%evp 18,146,12,16,25,18,27,22,31,26,22,0,22,0,10,0,0,0,0,-1,0,0,0,0,0,12,13,7,14,0,8,0,0,0,0,-4,0,0,0,0,0,-19,0,-30,-34,-36,-32,-35,-36,-35,-18,-82,-16,-23,-21,-29,-26,-14,-32,-29,0,-6,0,0,0,0,0,0,8,5,37,51,85,73,104,107,117,127,126,128,122,110,104,18,159,21,20,20,22,34,34,0,0,0,0,0,3,0,0,0,0,0,0,0,0,0,0,0,0,0,0,0,0,0,0,0,0,0,0,0,0,0,0,0,0,0,0,0,0,0,0]} 1. c4 {[%emt 0:00:09]} e6 {[%emt 0:00:49]} 2. Nc3 {[%emt 0:00:14]} d5 {[%emt 0:00:30]} 3. d4 {[%emt 0:00:07]} Nf6 {[%emt 0:00:23]} 4. cxd5 {[%emt 0:00:23]} exd5 {[%emt 0:00:07]} 5. Bg5 {[%emt 0:00:10]} Be7 {[%emt 0:00:13]} 6. e3 {[%emt 0:00:36]} O-O {[%emt 0:00:41]} 7. Bd3 {[%emt 0:00:31]} Re8 {[%emt 0:01:03]} 8. Nge2 {[%emt 0:03:35]} c6 {[%emt 0:00:54]} 9. Qc2 {[%emt 0:01:01]} h6 {[%emt 0:00:18]} 10. Bh4 {[%emt 0:01:05]} a5 {[%emt 0:00:30] D36: Queen's Gambit Declined: Exchange Variation: Main line (5 Bg5 c6 6 Qc2).} 11. O-O {[%emt 0:00:59]} Na6 {[%emt 0:00:15]} 12. a3 {[%emt 0:01:08] Dodges Nb4} Nc7 {[%emt 0:00:19]} 13. Rad1 {[%emt 0:01:55]} Ne6 {[%emt 0:01:44]} 14. f3 {[%emt 0:04:16]} b5 {[%emt 0:06:00]} 15. Bf2 {[%emt 0:04:14]} Ba6 {[%emt 0:03:10] [#]} 16. Ng3 $146 {[%emt 0:05:08]} ({Predecessor:} 16. Nc1 Qb8 17. N3e2 c5 18. dxc5 Bxc5 19. Nb3 Bb6 20. Qd2 a4 21. Nbd4 Nxd4 22. Nxd4 Bxd4 23. exd4 {½-½ Cvitan,O (2446)-Acikel,M (2197) EU-Cup 37th Mayrhofen 2022 (5.5)}) 16... Bf8 {[%emt 0:03:28]} 17. h3 {[%emt 0:05:15]} Qb8 {[%emt 0:09:28]} 18. Rfe1 {[%emt 0:08:17]} b4 {[%emt 0:07:17]} 19. axb4 {[%emt 0:00:22]} axb4 {[%emt 0:02:55]} 20. Nce2 {[%emt 0:03:34]} Bxd3 {[%emt 0:20:06]} 21. Qxd3 {[%emt 0:00:14]} c5 {[%emt 0:02:25]} 22. dxc5 {[%emt 0:00:13]} Nxc5 {[%emt 0:01:19]} 23. Qb1 {[%emt 0:02:51]} Qe5 {[%emt 0:06:10]} 24. Nd4 {[%emt 0:01:48]} Ne6 {[%emt 0:07:27]} 25. Ngf5 {[%emt 0:14:00] Strongly threatening Bg3.} Nxd4 {[%emt 0:01:22]} 26. exd4 {[%emt 0:01:52]} Qc7 {[%emt 0:01:05]} 27. Bg3 {[%emt 0:09:25]} Qb6 {[%emt 0:01:46]} 28. Be5 {[%emt 0:09:39]} Nd7 {[%emt 0:08:58]} 29. Kh1 {[%emt 0:01:03]} g6 {[%emt 0:05:02]} 30. Ng3 {[%emt 0:10:52]} (30. Ne3 $5 {[%cal Re3d5]}) 30... Bg7 {[%emt 0:03:25]} 31. Bxg7 {[%emt 0:02:19]} Kxg7 {[%emt 0:00:04]} 32. Qd3 {[%emt 0:03:55]} Qd6 {[%emt 0:01:24]} 33. Nf1 {[%emt 0:00:17]} Nf6 {[%emt 0:01:00]} 34. g4 {[%emt 0:01:40]} (34. g3 $11) 34... Qf4 {[%emt 0:01:31]} ({Black should try} 34... Nd7 $17 35. Qd2 Nb6) 35. Kg2 $11 {[%emt 0:00:24]} h5 {[%emt 0:00:58]} 36. Rxe8 $1 {[%emt 0:02:01]} Rxe8 {[%emt 0:00:24]} 37. Qd2 $1 {[%emt 0:00:24]} Qxd2+ {[%emt 0:03:14]} 38. Rxd2 {[%emt 0:00:10]} hxg4 {[%emt 0:01:11]} 39. hxg4 {[%emt 0:00:05][%mdl 4096] Endgame KRN-KRN} Nd7 {[%emt 0:00:22]} 40. Kf2 {[%emt 0:00:59]} Nb6 {[%emt 0:00:36]} 41. b3 {[%emt 0:18:44]} Rc8 {[%emt 0:10:19] Prevents Rc2} 42. Ra2 {[%emt 0:00:43]} Ra8 {[%emt 0:05:00]} 43. Rc2 {[%emt 0:00:56]} Ra3 {[%emt 0:13:19]} 44. Nd2 {[%emt 0:04:18]} Ra5 {[%emt 0:01:10]} 45. Rc7 {[%emt 0:00:36] Against Nd7} Kf8 {[%emt 0:01:32]} 46. Rb7 {[%emt 0:00:19]} Ra6 {[%emt 0:00:09]} 47. Nf1 $1 {[%emt 0:03:54]} f6 {[%emt 0:01:05]} 48. Ne3 {[%emt 0:02:24]} Ke8 {[%emt 0:00:03]} 49. Kg3 {[%emt 0:01:28]} Kd8 {[%emt 0:00:33] [#]} 50. Rf7 {[%emt 0:01:41] White is much more active.} ({Better is} 50. Nc2 $1 $16 {[%cal Rc2b4]} Nc8 51. Rb5 (51. Nxb4 Rd6 $16)) 50... Nd7 {[%emt 0:00:52] [#]} (50... Ra3 $11 {keeps the balance.}) 51. Nxd5 {[%emt 0:00:10]} (51. Rg7 $1 $16) 51... Rd6 {[%emt 0:00:27]} 52. Nxb4 {[%emt 0:00:49] Black must now prevent Rg7.} Ke8 {[%emt 0:00:06]} 53. Rh7 {[%emt 0:01:26]} Rxd4 {[%emt 0:00:05]} 54. Nc2 {[%emt 0:01:44]} Rd3 {[%emt 0:00:31] The position is equal.} 55. b4 {[%emt 0:00:19]} Rb3 {[%emt 0:01:38]} 56. Rh8+ {[%emt 0:00:23]} Kf7 {[%emt 0:00:32]} 57. Rh7+ {[%emt 0:00:04]} Ke8 {[%emt 0:00:02]} 58. Nd4 {[%emt 0:01:45]} Rxb4 {[%emt 0:00:11]} 59. Rh8+ {[%emt 0:00:23]} Kf7 {[%emt 0:00:09]} 60. Rh7+ {[%emt 0:00:24]} Ke8 {[%emt 0:00:04]} 61. Nc6 {[%emt 0:00:28]} Rb6 {[%emt 0:00:27]} 62. Re7+ {[%emt 0:00:46]} Kf8 {[%emt 0:00:03]} 63. Rxd7 {[%emt 0:00:24]} Rxc6 {[%emt 0:00:05] KR-KR} 64. Kf4 {[%emt 0:00:29]} Rc4+ {[%emt 0:00:07]} 65. Ke3 {[%emt 0:00:04]} Ra4 {[%emt 0:00:26]} 66. Rb7 {[%emt 0:00:05]} Kg8 {[%emt 0:00:19]} 67. f4 {[%emt 0:00:38]} Kf8 {[%emt 0:00:04]} 68. Rd7 {[%emt 0:00:12]} g5 {[%emt 0:01:06]} 69. fxg5 {[%emt 0:00:10]} Rxg4 {[%emt 0:00:37]} 70. gxf6 {[%emt 0:00:06]} Rg6 {[%emt 0:00:07]} 71. Rd6 {[%emt 0:00:12]} Kf7 {[%emt 0:00:04]} 72. Ke4 {[%emt 0:00:04]} Rxf6 {[%emt 0:00:04]} 73. Rxf6+ {[%emt 0:00:03]} Kxf6 {[%emt 0:00:06] Weighted Error Value: White=0.12 (very precise) /Black=0.12 (very precise)} 1/2-1/2

[Event "Icelandic Chess-ch 2023"]
[Site "Hafnarfjordur"]
[Date "2023.05.23"]
[Round "9.6"]
[White "Ragnarsson, Dagur"]
[Black "Danielsen, Henrik"]
[Result "1/2-1/2"]
[ECO "A21"]
[WhiteElo "2346"]
[BlackElo "2501"]
[Annotator "TA"]
[PlyCount "165"]
[EventDate "2023.05.13"]
[EventType "tourn"]
[EventCountry "ISL"]
[SourceTitle "playchess.com"]
[Source "ChessBase"]
[SourceQuality "1"]
[TimeControl "40/5400+30:1800+30"]

{[%evp 9,165,0,0,0,5,0,8,-1,17,0,16,0,-7,0,0,4,31,27,16,19,50,-49,17,20,18,14,22,0,51,0,54,43,72,77,105,77,93,68,70,76,68,71,74,77,69,55,68,75,82,91,108,76,92,69,202,159,402,102,148,63,66,47,54,54,23,34,36,0,11,0,0,0,0,0,0,0,0,0,0,0,0,0,0,0,0,0,0,0,0,0,156,156,154,152,153,152,156,156,198,198,198,198,198,198,256,227,443,443,443,443,443,443,443,443,443,443,432,418,410,0,393,341,318,311,289,213,213,58,80,64,80,8,8,0,0,0,8,8,8,8,8,8,8,0,0,0,0,0,0,0,0,0,8,0,0,0,8,0]} 1. d4 {[%emt 0:00:04]} d6 {[%emt 0:06:06]} 2. c4 {[%emt 0:00:25]} e5 {[%emt 0:00:39]} 3. Nc3 {[%emt 0:00:32]} exd4 {[%emt 0:04:11]} 4. Qxd4 {[%emt 0:00:09]} Nf6 {[%emt 0:00:19]} 5. Nf3 {[%emt 0:06:16]} Nc6 {[%emt 0:00:31]} 6. Qd2 {[%emt 0:04:55] A21: English Opening: 1...e5 2 Nc3.} Be6 {[%emt 0:04:40]} 7. e4 {[%emt 0:00:59]} Be7 {[%emt 0:07:24]} 8. b3 {[%emt 0:06:22] [#]} a5 $146 {[%emt 0:01:00]} ({Predecessor:} 8... Nd7 9. Be2 O-O 10. O-O Bf6 11. Ba3 a5 12. Rae1 Re8 13. Nd5 Bg4 14. h3 Bxf3 15. Bxf3 {½-½ Diaz,H (2237)-Giesel,M (2253) GER-PAN email 2018 [10]}) 9. Bb2 {[%emt 0:00:06]} a4 {[%emt 0:00:11]} 10. Rd1 {[%emt 0:00:24]} axb3 {[%emt 0:02:22]} 11. axb3 {[%emt 0:02:05]} O-O {[%emt 0:00:07]} 12. Be2 {[%emt 0:04:28]} Re8 {[%emt 0:06:54]} (12... Nd7 {feels hotter.} 13. Nd5 Nc5 14. O-O Ra2) 13. O-O {[%emt 0:00:17]} Nd7 {[%emt 0:03:51]} 14. Nd5 {[%emt 0:06:56]} Nc5 {[%emt 0:00:41]} 15. Qc3 {[%emt 0:06:05]} (15. Qc2 $14) 15... Bf8 {[%emt 0:02:46]} (15... Bf6 $1 $15 16. Nxf6+ Qxf6) 16. Nd2 $11 {[%emt 0:04:40]} Ne5 {[%emt 0:07:58]} 17. Ra1 {[%emt 0:04:50]} Rxa1 {[%emt 0:00:17]} 18. Rxa1 {[%emt 0:01:30]} Bxd5 {[%emt 0:00:36]} (18... Ng6 $11) 19. exd5 {[%emt 0:10:46]} (19. cxd5 $14 c6 20. b4) 19... Qd7 {[%emt 0:07:40]} (19... Be7 $11) 20. Qc2 $14 {[%emt 0:01:47]} Ng6 {[%emt 0:03:17]} 21. Bf1 {[%emt 0:06:41]} Qg4 {[%emt 0:04:36]} 22. h3 {[%emt 0:04:34]} Qg5 {[%emt 0:01:07]} 23. Nf3 {[%emt 0:03:21]} (23. b4 {keeps more tension.} Nf4 24. g3 Na6 25. Nf3) 23... Qd8 {[%emt 0:00:26]} 24. b4 {[%emt 0:04:34]} Nd7 {[%emt 0:05:10]} 25. Bd3 {[%emt 0:03:29] Black is weak on the light squares} Be7 {[%emt 0:00:20]} 26. Ra7 $36 {[%emt 0:01:21][%mdl 2048] White is really pushing.} Qb8 {[%emt 0:01:10]} 27. Qa4 {[%emt 0:02:34]} Ngf8 {[%emt 0:02:17]} 28. Bd4 {[%emt 0:02:26] This pair of bishops is nice.} Bf6 {[%emt 0:00:51]} 29. Be3 {[%emt 0:00:04]} g6 {[%emt 0:02:07]} 30. Qa2 {[%emt 0:05:11]} Bc3 {[%emt 0:01:05] [#]} 31. c5 $1 {[%emt 0:01:03][%cal Bc4c5,Bc5c6][%mdl 32]} Bxb4 {[%emt 0:01:37]} (31... Rxe3 $14 32. fxe3 Qe8) 32. c6 $18 {[%emt 0:00:11]} Nc5 {[%emt 0:05:56] [#]} (32... bxc6 $16 33. dxc6 Nc5) 33. Bb5 $2 {[%emt 0:01:49]} ({Less strong is} 33. Bxc5 Bxc5 34. Rxb7 Qd8 $14) (33. Bh6 $1 $18 {is the precise move to win.} Nxd3 34. cxb7) 33... b6 {[%emt 0:03:22]} (33... bxc6 $142 34. Bxc6 Rxe3 35. fxe3 Qb6) 34. Qa1 {[%emt 0:03:16]} ({Better is} 34. Rb7 $16 Qd8 35. Bd4) 34... Bc3 {[%emt 0:06:59]} 35. Qxc3 {[%emt 0:00:16][%cal Oe3h6] Intending Bh6! and mate.} Rxe3 {[%emt 0:00:12]} 36. Qxe3 {[%emt 0:02:30]} Qxa7 {[%emt 0:00:05]} 37. Qe7 {[%emt 0:00:07]} h6 {[%emt 0:00:14] Prevents Ng5} 38. Bf1 {[%emt 0:00:24] aiming for Nd4.} Nb3 {[%emt 0:03:45] Against Nd4} 39. Kh2 {[%emt 0:01:14]} (39. h4 {is interesting.} Kg7 40. h5 b5 41. Nh4) 39... b5 {[%emt 0:04:45]} 40. Bxb5 {[%emt 0:00:08]} Qxf2 {[%emt 0:02:13]} 41. Qxc7 {[%emt 0:04:30]} Nd4 $1 {[%emt 0:00:06]} 42. Nxd4 {[%emt 0:00:06][%cal Oc7d6] Threatens to win with Qxd6!} Qf4+ {[%emt 0:00:05]} 43. Kh1 {[%emt 0:02:51]} Qc1+ {[%emt 0:00:13]} 44. Kh2 {[%emt 0:00:04]} Qf4+ {[%emt 0:00:08]} 45. g3 {[%emt 0:02:49]} Qf2+ {[%emt 0:03:06]} (45... Qxd4 $2 46. Bf1 (46. Qxd6 Qb2+ 47. Kg1 Qxb5 $11) 46... Qxd5 47. Bg2 $18) 46. Kh1 {[%emt 0:00:28]} Qxd4 $11 {[%emt 0:01:00][%mdl 4096] Endgame KQB-KQN} 47. Bf1 {[%emt 0:00:10] Active counter play!} Qd1 {[%emt 0:02:04]} 48. Kg1 {[%emt 0:00:18]} Qxd5 {[%emt 0:00:08]} (48... Qd4+ $2 49. Kh2 Qxd5 50. Bg2 $16) 49. Qb6 {[%emt 0:05:29]} Ne6 {[%emt 0:07:46]} (49... Qf3 $11) 50. c7 $16 {[%emt 0:00:06]} Nxc7 {[%emt 0:00:38]} 51. Qxc7 {[%emt 0:00:07]} Qe5 {[%emt 0:01:54]} 52. Kh2 {[%emt 0:01:56]} Kg7 {[%emt 0:00:16]} 53. Bg2 {[%emt 0:00:21]} h5 {[%emt 0:00:29]} 54. Qc4 {[%emt 0:01:26]} Qb2 {[%emt 0:04:29]} 55. h4 {[%emt 0:00:43]} Qe5 {[%emt 0:00:23]} 56. Qf4 {[%emt 0:01:38]} f6 {[%emt 0:00:13]} (56... Qc5 $142 57. Qe4 Qc3) 57. Qf3 {[%emt 0:02:06]} f5 $2 {[%emt 0:01:06]} (57... Kh6 58. Bf1 Qe6) 58. Qb7+ $18 {[%emt 0:00:22]} Kf6 {[%emt 0:00:37]} 59. Qa8 {[%emt 0:01:45]} Kg7 {[%emt 0:00:18]} 60. Qa4 {[%emt 0:01:29]} Kf6 {[%emt 0:00:36]} 61. Qf4 {[%emt 0:02:22]} ({Weaker is} 61. Qa8 Kg7 62. Qb7+ Kf6 $18) 61... Kg7 {[%emt 0:00:14]} 62. Bf3 {[%emt 0:00:25]} Kh7 {[%emt 0:00:39]} 63. Kh3 {[%emt 0:01:22]} Qe6 {[%emt 0:00:18]} 64. Kh2 $2 {[%emt 0:00:45]} (64. Bg2 $18) 64... Qa2+ $2 {[%emt 0:00:08][%mdl 8192]} (64... Qe5 $11 65. Qc4 Qe7) 65. Bg2 {[%emt 0:00:04]} Qe6 {[%emt 0:00:06]} 66. Qc1 {[%emt 0:00:46]} Kg7 {[%emt 0:02:57]} 67. Qc7+ {[%emt 0:00:10]} Kh6 {[%emt 0:01:05]} 68. Qb7 $2 {[%emt 0:02:20]} ({White should try} 68. Qb8 $18 {[%cal Rb8h8]} Qf6 69. Qb4) 68... f4 $1 $14 {[%emt 0:01:45]} 69. gxf4 {[%emt 0:00:20] And now Qb2 would win.} Qg4 {[%emt 0:00:02]} 70. Qf7 {[%emt 0:04:01]} (70. Qe4 $16) 70... Qxh4+ $11 {[%emt 0:00:10] The position is equal.} 71. Bh3 {[%emt 0:00:31] Black must now prevent Qf8+.} Qf2+ {[%emt 0:00:21]} 72. Bg2 {[%emt 0:00:09] Hoping for Qf6.} Qh4+ {[%emt 0:01:34]} 73. Kg1 {[%emt 0:00:33]} Qe1+ {[%emt 0:00:06]} 74. Bf1 {[%emt 0:00:23]} Qg3+ {[%emt 0:01:01]} 75. Kh1 {[%emt 0:00:45] Qf8+ would be deadly.} Qe1 {[%emt 0:02:10]} 76. Qf8+ {[%emt 0:00:21]} Kh7 {[%emt 0:00:09]} 77. Kg2 {[%emt 0:01:31]} Qd2+ {[%emt 0:01:29]} 78. Kg1 {[%emt 0:01:04]} Qe3+ {[%emt 0:00:16]} 79. Kh1 {[%emt 0:00:07]} Qe1 {[%emt 0:00:17]} 80. Qf7+ {[%emt 0:00:16]} Kh6 {[%emt 0:00:09]} 81. Qf8+ {[%emt 0:00:33]} Kh7 {[%emt 0:00:01]} 82. Qf7+ {[%emt 0:00:07]} Kh6 {[%emt 0:00:06]} 83. Qf8+ {[%emt 0:00:04] Blacks defense is rewarded with a draw.   Weighted Error Value: White=0.21 (precise) /Black=0.25 (precise)} 1/2-1/2